fUST/lending_fUST_20250302
["ID","MTS","AMOUNT","RATE_DAILY","PERIOD"]
[355038414,1740879044260,-500.0,0.00024657,2]
[355038415,1740879044270,-500.0,0.00024657,2]
[355038416,1740879044280,-500.0,0.00024657,2]
[355038417,1740879044290,-500.0,0.00024657,2]
[355038418,1740879044300,-500.0,0.00024657,2]
[355038419,1740879044310,-500.0,0.00024657,2]
[355038420,1740879044320,-500.0,0.00024657,2]
[355038421,1740879044330,-500.0,0.00024657,2]
[355038422,1740879044340,-451.12,0.00024657,2]
[355038423,1740879044351,-500.0,0.00024657,2]
[355038424,1740879044360,-500.0,0.00024657,2]
[355038425,1740879044371,-500.0,0.00024657,2]
[355038426,1740879044382,-500.0,0.00024657,2]
[355038427,1740879044392,-500.0,0.00024657,2]
[355038428,1740879044401,-500.0,0.00024657,2]
[355038429,1740879044411,-500.0,0.00024657,2]
[355038430,1740879044421,-546.27,0.00024657,2]
[355038431,1740879044430,-981.6,0.00024657,2]
[355038432,1740879044440,-500.0,0.00024657,2]
[355038433,1740879044450,-500.0,0.00024657,2]
[355038435,1740879044460,-500.0,0.00024657,2]
[355038436,1740879044470,-500.0,0.00024657,2]
[355038437,1740879044480,-1998.47,0.00024657,2]
[355038438,1740879044490,-500.0,0.00024657,2]
[355038439,1740879044500,-500.0,0.00024657,2]
[355038440,1740879044510,-500.0,0.00024657,2]
[355038441,1740879044519,-500.0,0.00024657,2]
[355038442,1740879044529,-500.0,0.00024657,2]
[355038443,1740879044539,-500.0,0.00024657,2]
[355038444,1740879044550,-500.0,0.00024657,2]
[355038445,1740879044559,-500.0,0.00024657,2]
[355038446,1740879044569,-500.0,0.00024657,2]
[355038447,1740879044579,-500.0,0.00024657,2]
[355038448,1740879044588,-1132.58,0.00024657,2]
[355038449,1740879044598,-1390.75,0.00024657,2]
[355038450,1740879044608,-500.0,0.00024657,2]
[355038451,1740879044617,-500.0,0.00024657,2]
[355038452,1740879044627,-750.61,0.00024657,2]
[355038453,1740879044637,-1225.65,0.00024657,2]
[355038454,1740879044648,-500.0,0.00024657,2]
[355038455,1740879044658,-500.0,0.00024657,2]
[355038456,1740879044668,-500.0,0.00024657,2]
[355038457,1740879044679,-500.0,0.00024657,2]
[355038458,1740879044690,-500.0,0.00024657,2]
[355038459,1740879044700,-500.0,0.00024657,2]
[355038460,1740879044711,-500.0,0.00024657,2]
[355038461,1740879044722,-500.0,0.00024657,2]
[355038462,1740879044733,-2942.81,0.00024657,2]
[355038463,1740879044747,-500.0,0.00024657,2]
[355038464,1740879044759,-500.0,0.00024657,2]
[355038465,1740879044770,-500.0,0.00024657,2]
[355038466,1740879044781,-500.0,0.00024657,2]
[355038467,1740879044791,-687.27,0.00024657,2]
[355038468,1740879044804,-500.0,0.00024657,2]
[355038469,1740879044814,-546.92,0.00024657,2]
[355038470,1740879044823,-500.0,0.00024657,2]
[355038471,1740879044834,-500.0,0.00024657,2]
[355038472,1740879044844,-161.55409881,0.00024657,2]
[355038473,1740879044855,-500.0,0.00024657,2]
[355038474,1740879044865,-500.0,0.00024657,2]
[355038475,1740879044875,-6653.65,0.00024657,2]
[355038476,1740879044886,-531.68,0.00024657,2]
[355038477,1740879044896,-500.0,0.00024657,2]
[355038478,1740879044906,-500.0,0.00024657,2]
[355038479,1740879044916,-500.0,0.00024657,2]
[355038480,1740879044926,-500.0,0.00024657,2]
[355038481,1740879044937,-500.0,0.00024657,2]
[355038482,1740879044947,-787.34,0.00024657,2]
[355038483,1740879044959,-520.11961642,0.00024657,2]
[355038484,1740879044970,-515.39,0.00024657,2]
[355038485,1740879044984,-500.0,0.00024657,2]
[355038486,1740879044996,-500.0,0.00024657,2]
[355038487,1740879045006,-921.01,0.00024657,2]
[355038488,1740879045016,-798.9,0.00024657,2]
[355038489,1740879045026,-1357.37,0.00024657,2]
[355038490,1740879045035,-500.0,0.00024657,2]
[355038491,1740879045045,-500.0,0.00024657,2]
[355038492,1740879045056,-1253.57,0.00024657,2]
[355038493,1740879045066,-1100.26,0.00024657,2]
[355038494,1740879045075,-500.0,0.00024657,2]
[355038495,1740879045085,-500.0,0.00024657,2]
[355038496,1740879045095,-500.0,0.00024657,2]
[355038497,1740879045104,-500.0,0.00024657,2]
[355038498,1740879045114,-181.23774386,0.00024657,2]
[355038499,1740879045123,-500.0,0.00024657,2]
[355038500,1740879045132,-500.0,0.00024657,2]
[355038501,1740879045141,-500.0,0.00024657,2]
[355038502,1740879045151,-500.0,0.00024657,2]
[355038503,1740879045161,-500.0,0.00024657,2]
[355038504,1740879045171,-500.0,0.00024657,2]
[355038505,1740879045181,-1064.91,0.00024657,2]
[355038506,1740879045191,-1028.64,0.00024657,2]
[355038507,1740879045200,-500.0,0.00024657,2]
[355038508,1740879045210,-500.0,0.00024657,2]
[355038509,1740879045220,-953.5,0.00024657,2]
[355038510,1740879045229,-500.0,0.00024657,2]
[355038511,1740879045239,-500.0,0.00024657,2]
[355038512,1740879045250,-500.0,0.00024657,2]
[355038513,1740879045259,-500.0,0.00024657,2]
[355038514,1740879045269,-500.0,0.00024657,2]
[355038515,1740879045279,-500.0,0.00024657,2]
[355038516,1740879045288,-500.0,0.00024657,2]
[355038517,1740879045298,-500.0,0.00024657,2]
[355038518,1740879045308,-500.0,0.00024657,2]
[355038519,1740879045318,-500.0,0.00024657,2]
[355038520,1740879045327,-1357.74,0.00024657,2]
[355038521,1740879045337,-500.0,0.00024657,2]
[355038522,1740879045347,-500.0,0.00024657,2]
[355038523,1740879045357,-500.0,0.00024657,2]
[355038524,1740879045367,-2304.27,0.00024657,2]
[355038525,1740879045376,-165.40084644,0.00024657,10]
[355038526,1740879045386,-500.0,0.00024657,2]
[355038527,1740879045395,-500.0,0.00024657,2]
[355038528,1740879045405,-500.0,0.00024657,2]
[355038529,1740879045414,-913.09,0.00024657,2]
[355038530,1740879045424,-503.7066998,0.00024657,2]
[355038531,1740879045433,-500.0,0.00024657,2]
[355038532,1740879045443,-500.0,0.00024657,2]
[355038533,1740879045454,-500.09789776,0.00024657,2]
[355038534,1740879045463,-616.8,0.00024657,2]
[355038535,1740879045474,-500.0,0.00024657,2]
[355038536,1740879045483,-500.0,0.00024657,2]
[355038537,1740879045495,-500.0,0.00024657,2]
[355038538,1740879045505,-500.0,0.00024657,2]
[355038539,1740879045514,-500.0,0.00024657,2]
[355038540,1740879045525,-530.27,0.00024657,2]
[355038541,1740879045535,-500.0,0.00024657,2]
[355038542,1740879045546,-500.0,0.00024657,2]
[355038543,1740879045556,-1322.93,0.00024657,2]
[355038544,1740879045567,-500.0,0.00024657,2]
[355038545,1740879045577,-2037.26,0.00024657,2]
[355038546,1740879045587,-500.0,0.00024657,2]
[355038547,1740879045598,-500.0,0.00024657,2]
[355038548,1740879045608,-478.32740067,0.00024657,2]
[355038549,1740879045618,-500.0,0.00024657,2]
[355038550,1740879045628,-228894.7,0.00024657,2]
[355038551,1740879045639,-500.0,0.00024657,2]
[355038552,1740879045649,-500.0,0.00024657,2]
[355038553,1740879045659,-5273.75,0.00024657,2]
[355038554,1740879045670,-500.0,0.00024657,2]
[355038555,1740879045680,-3865.73,0.00024657,2]
[355038556,1740879045690,-500.0,0.00024657,2]
[355038557,1740879045700,-500.0,0.00024657,2]
[355038558,1740879045710,-503.22028765,0.00024657,2]
[355038559,1740879045721,-500.0,0.00024657,2]
[355038560,1740879045730,-774.46,0.00024657,2]
[355038561,1740879045743,-500.0,0.00024657,2]
[355038562,1740879045753,-500.0,0.00024657,2]
[355038563,1740879045764,-1845.43,0.00024657,2]
[355038564,1740879045774,-500.0,0.00024657,2]
[355038565,1740879045784,-500.0,0.00024657,2]
[355038566,1740879045795,-500.0,0.00024657,2]
[355038567,1740879045805,-500.0,0.00024657,2]
[355038568,1740879045815,-500.0,0.00024657,2]
[355038569,1740879045826,-500.0,0.00024657,2]
[355038570,1740879045838,-2547.98,0.00024657,2]
[355038571,1740879045848,-508.43,0.00024657,2]
[355038572,1740879045858,-500.0,0.00024657,2]
[355038573,1740879045868,-1042.11,0.00024657,2]
[355038574,1740879045878,-500.0,0.00024657,2]
[355038575,1740879045888,-500.0,0.00024657,2]
[355038576,1740879045898,-500.0,0.00024657,2]
[355038577,1740879045908,-500.0,0.00024657,2]
[355038578,1740879045918,-500.0,0.00024657,2]
[355038579,1740879045927,-500.0,0.00024657,2]
[355038580,1740879045938,-4735.09,0.00024657,2]
[355038581,1740879045947,-500.0,0.00024657,2]
[355038582,1740879045957,-500.0,0.00024657,2]
[355038583,1740879045967,-500.0,0.00024657,2]
[355038584,1740879045976,-500.0,0.00024657,2]
[355038586,1740879045987,-887.32,0.00024657,2]
[355038587,1740879045996,-500.0,0.00024657,2]
[355038588,1740879046007,-500.0,0.00024657,2]
[355038589,1740879046016,-500.0,0.00024657,2]
[355038590,1740879046025,-375.79904528,0.00024657,2]
[355038591,1740879046035,-500.0,0.00024657,2]
[355038592,1740879046046,-500.0,0.00024657,2]
[355038593,1740879046055,-500.0,0.00024657,2]
[355038594,1740879046065,-1654.79,0.00024657,2]
[355038595,1740879046074,-502.98892794,0.00024657,2]
[355038596,1740879046084,-500.0,0.00024657,2]
[355038597,1740879046093,-571.36,0.00024657,2]
[355038598,1740879046102,-500.0,0.00024657,2]
[355038600,1740879046112,-2534.25,0.00024657,2]
[355038602,1740879046122,-500.0,0.00024657,2]
[355038603,1740879046132,-500.0,0.00024657,2]
[355038604,1740879046142,-500.0,0.00024657,2]
[355038605,1740879046151,-500.0,0.00024657,2]
[355038606,1740879046160,-757.87,0.00024657,2]
[355038607,1740879046170,-500.0,0.00024657,2]
[355038608,1740879046180,-500.0,0.00024657,2]
[355038609,1740879046189,-500.0,0.00024657,2]
[355038610,1740879046199,-500.0,0.00024657,2]
[355038611,1740879046208,-500.0,0.00024657,2]
[355038612,1740879046218,-503.14924684,0.00024657,2]
[355038613,1740879046229,-500.0,0.00024657,2]
[355038614,1740879046239,-579.72137568,0.00024657,2]
[355038615,1740879046250,-746.63,0.00024657,2]
[355038616,1740879046260,-500.0,0.00024657,2]
[355038617,1740879046271,-2132.63,0.00024657,2]
[355038618,1740879046281,-5714.61,0.00024657,2]
[355038619,1740879046291,-685.05,0.00024657,2]
[355038620,1740879046301,-500.0,0.00024657,2]
[355038621,1740879046311,-500.0,0.00024657,2]
[355038622,1740879046321,-1619.9,0.00024657,2]
[355038623,1740879046331,-830.83,0.00024657,2]
[355038624,1740879046342,-527.4952183,0.00024657,2]
[355038626,1740879046352,-12095.69,0.00024657,2]
[355038627,1740879046361,-500.0,0.00024657,2]
[355038628,1740879046372,-681.53,0.00024657,2]
[355038629,1740879046382,-500.0,0.00024657,2]
[355038630,1740879046392,-500.0,0.00024657,2]
[355038631,1740879046402,-500.0,0.00024657,2]
[355038632,1740879046412,-500.0,0.00024657,2]
[355038633,1740879046422,-4178.4,0.00024657,2]
[355038634,1740879046432,-500.0,0.00024657,2]
[355038636,1740879046442,-500.0,0.00024657,2]
[355038638,1740879046451,-500.0,0.00024657,2]
[355038639,1740879046462,-500.0,0.00024657,2]
[355038640,1740879046472,-500.0,0.00024657,2]
[355038641,1740879046483,-500.0,0.00024657,2]
[355038642,1740879046494,-1330.74,0.00024657,2]
[355038643,1740879046504,-500.0,0.00024657,2]
[355038644,1740879046514,-500.0,0.00024657,2]
[355038645,1740879046524,-500.0,0.00024657,2]
[355038646,1740879046535,-500.0,0.00024657,2]
[355038647,1740879046544,-500.0,0.00024657,2]
[355038648,1740879046555,-500.0,0.00024657,2]
[355038649,1740879046565,-500.0,0.00024657,2]
[355038650,1740879046575,-500.0,0.00024657,2]
[355038651,1740879046584,-510.29,0.00024657,2]
[355038652,1740879046595,-500.0,0.00024657,2]
[355038653,1740879046605,-500.0,0.00024657,2]
[355038654,1740879046615,-500.0,0.00024657,2]
[355038655,1740879046626,-500.0,0.00024657,2]
[355038657,1740879046636,-500.0,0.00024657,2]
[355038658,1740879046647,-1275.17,0.00024657,2]
[355038659,1740879046658,-500.0,0.00024657,2]
[355038660,1740879046668,-500.0,0.00024657,2]
[355038661,1740879046680,-500.0,0.00024657,2]
[355038662,1740879046691,-500.0,0.00024657,2]
[355038663,1740879046702,-500.0,0.00024657,2]
[355038664,1740879046713,-448.69,0.00024657,2]
[355038665,1740879046724,-325.02174419,0.00024657,2]
[355038666,1740879046736,-500.0,0.00024657,2]
[355038667,1740879046748,-2632.57,0.00024657,2]
[355038668,1740879046764,-500.0,0.00024657,2]
[355038669,1740879046775,-500.0,0.00024657,2]
[355038670,1740879046787,-500.0,0.00024657,2]
[355038671,1740879046798,-500.0,0.00024657,2]
[355038672,1740879046809,-500.0,0.00024657,2]
[355038673,1740879046819,-3272.09,0.00024657,2]
[355038674,1740879046831,-500.0,0.00024657,2]
[355038675,1740879046841,-500.0,0.00024657,2]
[355038676,1740879046852,-6089.99,0.00024657,2]
[355038677,1740879046862,-500.0,0.00024657,2]
[355038678,1740879046874,-896.16,0.00024657,2]
[355038679,1740879046889,-2422.9,0.00024657,2]
[355038680,1740879046901,-500.0,0.00024657,2]
[355038681,1740879046912,-501.6256182,0.00024657,2]
[355038682,1740879046922,-500.0,0.00024657,2]
[355038683,1740879046933,-500.0,0.00024657,2]
[355038684,1740879046944,-1792.97,0.00024657,2]
[355038685,1740879046955,-500.0,0.00024657,2]
[355038686,1740879046965,-500.0,0.00024657,2]
[355038687,1740879046975,-500.0,0.00024657,2]
[355038688,1740879046985,-500.0,0.00024657,2]
[355038689,1740879046996,-500.0,0.00024657,2]
[355038690,1740879047006,-1799.99,0.00024657,2]
[355038691,1740879047017,-664.3,0.00024657,2]
[355038692,1740879047028,-500.0,0.00024657,2]
[355038693,1740879047038,-500.0,0.00024657,2]
[355038694,1740879047048,-500.0,0.00024657,2]
[355038695,1740879047058,-500.0,0.00024657,2]
[355038696,1740879047068,-500.0,0.00024657,2]
[355038697,1740879047079,-500.0,0.00024657,2]
[355038698,1740879047090,-19164.85,0.00024657,2]
[355038699,1740879047100,-500.0,0.00024657,2]
[355038700,1740879047111,-500.0,0.00024657,2]
[355038701,1740879047121,-687.1,0.00024657,2]
[355038702,1740879047131,-500.0,0.00024657,2]
[355038703,1740879047141,-500.0,0.00024657,2]
[355038704,1740879047152,-14410.22,0.00024657,2]
[355038705,1740879047162,-500.0,0.00024657,2]
[355038706,1740879047172,-500.0,0.00024657,2]
[355038707,1740879047183,-500.0,0.00024657,2]
[355038708,1740879047193,-407.07592528,0.00024657,2]
[355038709,1740879047204,-500.0,0.00024657,2]
[355038710,1740879047214,-500.0,0.00024657,2]
[355038711,1740879047223,-521.8234435,0.00024657,2]
[355038712,1740879047233,-500.0,0.00024657,2]
[355038713,1740879047243,-500.0,0.00024657,2]
[355038714,1740879047255,-500.0,0.00024657,2]
[355038715,1740879047264,-500.0,0.00024657,2]
[355038716,1740879047275,-500.0,0.00024657,2]
[355038717,1740879047285,-1792.12,0.00024657,2]
[355038718,1740879047295,-500.0,0.00024657,2]
[355038719,1740879047305,-500.0,0.00024657,2]
[355038720,1740879047315,-1461.2,0.00024657,2]
[355038721,1740879047326,-500.0,0.00024657,2]
[355038722,1740879047337,-500.0,0.00024657,2]
[355038723,1740879047347,-500.0,0.00024657,2]
[355038724,1740879047357,-500.0,0.00024657,2]
[355038725,1740879047367,-8901.6,0.00024657,2]
[355038726,1740879047378,-1405.11,0.00024657,2]
[355038727,1740879047388,-1231.32,0.00024657,2]
[355038728,1740879047399,-500.0,0.00024657,2]
[355038729,1740879047409,-500.0,0.00024657,2]
[355038730,1740879047420,-2321.88,0.00024657,2]
[355038731,1740879047430,-500.0,0.00024657,2]
[355038732,1740879047440,-954.26,0.00024657,2]
[355038733,1740879047451,-500.0,0.00024657,2]
[355038734,1740879047461,-500.0,0.00024657,2]
[355038735,1740879047473,-160.97737788,0.00024657,2]
[355038736,1740879047483,-500.0,0.00024657,2]
[355038737,1740879047494,-1016.36,0.00024657,2]
[355038738,1740879047509,-500.0,0.00024657,2]
[355038739,1740879047519,-500.0,0.00024657,2]
[355038740,1740879047530,-500.0,0.00024657,2]
[355038741,1740879047540,-500.0,0.00024657,2]
[355038742,1740879047551,-500.0,0.00024657,2]
[355038743,1740879047562,-3999.53,0.00024657,2]
[355038744,1740879047573,-590.52,0.00024657,2]
[355038745,1740879047583,-5365.43,0.00024657,2]
[355038746,1740879047594,-666.73,0.00024657,2]
[355038747,1740879047605,-518.02578708,0.00024657,2]
[355038748,1740879047615,-500.0,0.00024657,2]
[355038749,1740879047626,-500.0,0.00024657,2]
[355038750,1740879047636,-929.8,0.00024657,2]
[355038751,1740879047647,-500.0,0.00024657,2]
[355038752,1740879047657,-500.0,0.00024657,2]
[355038753,1740879047668,-500.0,0.00024657,2]
[355038754,1740879047678,-500.0,0.00024657,2]
[355038755,1740879047688,-1435.64,0.00024657,5]
[355038756,1740879047699,-524.0,0.00024657,2]
[355038757,1740879047709,-500.0,0.00024657,2]
[355038758,1740879047719,-500.0,0.00024657,2]
[355038759,1740879047729,-500.0,0.00024657,2]
[355038760,1740879047739,-2215.83,0.00024657,2]
[355038761,1740879047754,-500.0,0.00024657,2]
[355038762,1740879047765,-500.0,0.00024657,2]
[355038763,1740879047776,-500.0,0.00024657,2]
[355038764,1740879047787,-1787.09,0.00024657,2]
[355038765,1740879047797,-545.59,0.00024657,2]
[355038766,1740879047809,-8008.49,0.00024657,2]
[355038767,1740879047820,-500.0,0.00024657,2]
[355038768,1740879047832,-500.0,0.00024657,2]
[355038769,1740879047843,-1047.58,0.00024657,2]
[355038770,1740879047854,-500.0,0.00024657,2]
[355038771,1740879047865,-500.0,0.00024657,2]
[355038772,1740879047875,-672.95,0.00024657,2]
[355038773,1740879047886,-500.0,0.00024657,2]
[355038774,1740879047896,-1419.66,0.00024657,2]
[355038775,1740879047908,-500.0,0.00024657,2]
[355038776,1740879047919,-1183.92,0.00024657,2]
[355038777,1740879047930,-500.0,0.00024657,2]
[355038778,1740879047940,-500.0,0.00024657,2]
[355038779,1740879047951,-553.62,0.00024657,2]
[355038780,1740879047962,-927.13,0.00024657,2]
[355038781,1740879047973,-500.0,0.00024657,2]
[355038782,1740879047983,-500.0,0.00024657,2]
[355038783,1740879047994,-1688.46,0.00024657,2]
[355038784,1740879048006,-500.0,0.00024657,2]
[355038785,1740879048017,-500.0,0.00024657,2]
[355038786,1740879048027,-1713.59,0.00024657,2]
[355038787,1740879048037,-1383.14,0.00024657,2]
[355038788,1740879048048,-500.0,0.00024657,2]
[355038789,1740879048059,-500.0,0.00024657,2]
[355038790,1740879048070,-500.0,0.00024657,2]
[355038791,1740879048081,-500.0,0.00024657,2]
[355038792,1740879048092,-500.0,0.00024657,2]
[355038793,1740879048103,-500.0,0.00024657,2]
[355038794,1740879048114,-686.9,0.00024657,2]
[355038795,1740879048125,-500.0,0.00024657,2]
[355038796,1740879048135,-915.47,0.00024657,2]
[355038797,1740879048146,-502.89216686,0.00024657,2]
[355038798,1740879048157,-500.0,0.00024657,2]
[355038799,1740879048167,-500.0,0.00024657,2]
[355038800,1740879048178,-1978.09,0.00024657,2]
[355038801,1740879048188,-500.0,0.00024657,2]
[355038802,1740879048199,-200.89045231,0.00024657,2]
[355038803,1740879048210,-500.0,0.00024657,2]
[355038804,1740879048220,-3966.01,0.00024657,2]
[355038805,1740879048231,-1321.02,0.00024657,2]
[355038806,1740879048242,-1012.54,0.00024657,2]
[355038807,1740879048253,-500.0,0.00024657,2]
[355038808,1740879048264,-940.66,0.00024657,2]
[355038809,1740879048274,-500.0,0.00024657,2]
[355038810,1740879048284,-1879.68,0.00024657,2]
[355038811,1740879048295,-500.0,0.00024657,2]
[355038812,1740879048305,-3778.48,0.00024657,2]
[355038813,1740879048316,-500.0,0.00024657,2]
[355038814,1740879048326,-1315.43,0.00024657,2]
[355038815,1740879048337,-500.0,0.00024657,2]
[355038816,1740879048347,-500.0,0.00024657,2]
[355038817,1740879048359,-500.0,0.00024657,2]
[355038818,1740879048370,-1000.0,0.00024657,2]
[355038819,1740879048382,-500.0,0.00024657,2]
[355038820,1740879048392,-500.0,0.00024657,2]
[355038821,1740879048402,-500.0,0.00024657,2]
[355038822,1740879048412,-500.0,0.00024657,2]
[355038823,1740879048422,-356.94056985,0.00024657,2]
[355038824,1740879048434,-500.0,0.00024657,2]
[355038825,1740879048444,-267.78360873,0.00024657,2]
[355038826,1740879048455,-521.13,0.00024657,2]
[355038827,1740879048465,-500.0,0.00024657,2]
[355038828,1740879048479,-7346.2,0.00024657,2]
[355038829,1740879048490,-500.0,0.00024657,2]
[355038830,1740879048503,-654.9,0.00024657,2]
[355038831,1740879048514,-2816.3,0.00024657,2]
[355038832,1740879048524,-500.0,0.00024657,2]
[355038833,1740879048535,-500.0,0.00024657,2]
[355038834,1740879048546,-500.0,0.00024657,2]
[355038835,1740879048797,-500.0,0.00024657,2]
[355038836,1740879048808,-509.27511864,0.00024657,2]
[355038837,1740879048818,-16797.07,0.00024657,2]
[355038838,1740879048829,-500.0,0.00024657,2]
[355038839,1740879048839,-500.0,0.00024657,2]
[355038840,1740879048848,-722.54,0.00024657,2]
[355038841,1740879048859,-500.0,0.00024657,2]
[355038842,1740879048869,-500.0,0.00024657,2]
[355038843,1740879048878,-528.74505089,0.00024657,2]
[355038844,1740879048888,-406.66655941,0.00024657,2]
[355038845,1740879048898,-500.0,0.00024657,2]
[355038846,1740879048908,-503.35814536,0.00024657,2]
[355038847,1740879048918,-500.0,0.00024657,2]
[355038848,1740879048929,-516.49495893,0.00024657,2]
[355038849,1740879048939,-500.0,0.00024657,2]
[355038850,1740879048949,-504.8597704,0.00024657,2]
[355038851,1740879048960,-2221.84,0.00024657,2]
[355038852,1740879048970,-500.0,0.00024657,2]
[355038853,1740879048980,-1851.45,0.00024657,2]
[355038854,1740879048990,-500.0,0.00024657,2]
[355038855,1740879049000,-500.0,0.00024657,2]
[355038856,1740879049010,-18973.49,0.00024657,2]
[355038857,1740879049020,-500.0,0.00024657,2]
[355038858,1740879049030,-500.0,0.00024657,2]
[355038859,1740879049041,-500.0,0.00024657,2]
[355038860,1740879049050,-583.22,0.00024657,2]
[355038861,1740879049061,-500.0,0.00024657,2]
[355038862,1740879049070,-500.99567565,0.00024657,2]
[355038863,1740879049080,-500.72315907,0.00024657,2]
[355038864,1740879049091,-579.48950715,0.00024657,2]
[355038865,1740879049100,-500.0,0.00024657,2]
[355038866,1740879049110,-501.75348066,0.00024657,2]
[355038867,1740879049120,-500.0,0.00024657,2]
[355038868,1740879049130,-621.56664829,0.00024657,2]
[355038869,1740879049140,-500.0,0.00024657,2]
[355038870,1740879049150,-500.0,0.00024657,2]
[355038871,1740879049160,-500.0,0.00024657,2]
[355038872,1740879049170,-500.0,0.00024657,2]
[355038873,1740879049180,-600.37934138,0.00024657,2]
[355038874,1740879049190,-508.35179859,0.00024657,2]
[355038875,1740879049200,-2023.15,0.00024657,2]
[355038876,1740879049210,-546.98,0.00024657,2]
[355038877,1740879049220,-696.3,0.00024657,2]
[355038878,1740879049230,-500.0,0.00024657,2]
[355038879,1740879049240,-500.0,0.00024657,2]
[355038880,1740879049252,-500.0,0.00024657,2]
[355038881,1740879049262,-380.0,0.00024658,2]
[355038882,1740879049272,-644.0100119,0.00024658,2]
[355038883,1740879049282,-500.0,0.00024658,2]
[355038884,1740879049292,-500.0,0.00024658,2]
[355038885,1740879049303,-500.0,0.00024658,2]
[355038886,1740879049313,-500.0,0.00024658,2]
[355038887,1740879049322,-500.0,0.00024658,2]
[355038888,1740879049332,-500.0,0.00024658,2]
[355038889,1740879049343,-500.0,0.00024658,2]
[355038890,1740879049353,-500.0,0.00024658,2]
[355038891,1740879049363,-216.48109635,0.00024658,2]
[355038892,1740879049372,-500.0,0.00024658,2]
[355038893,1740879049382,-499.99999999,0.00024658,2]
[355038894,1740879049392,-268.64932979,0.00024673,2]
[355038895,1740879049401,-500.0,0.00024673,2]
[355038896,1740879049411,-500.0,0.00024673,2]
[355038897,1740879049420,-506.31835063,0.00024673,2]
[355038898,1740879049430,-500.0,0.00024673,2]
[355038899,1740879049439,-500.0,0.00024673,2]
[355038900,1740879049449,-500.0,0.00024673,2]
[355038901,1740879049458,-300.26517633,0.00024673,2]
[355038902,1740879049468,-160.0,0.00024673,2]
[355038903,1740879049478,-501.85639985,0.00024673,2]
[355038904,1740879049488,-160.0,0.00024673,2]
[355038905,1740879049500,-160.0,0.00024673,2]
[355038906,1740879049509,-160.0,0.00024673,2]
[355038907,1740879049519,-602.33728723,0.00024673,2]
[355038908,1740879049528,-468.68878311,0.00024673,2]
[355038909,1740879049539,-508.48599119,0.00024673,2]
[355038910,1740879049548,-251.58457217,0.00024673,2]
[355038911,1740879049558,-500.0,0.00024673,2]
[355038912,1740879049568,-506.27657132,0.00024673,2]
[355038913,1740879049578,-500.0,0.00024673,2]
[355038914,1740879049587,-500.0,0.00024673,2]
[355038915,1740879049597,-401.95150697,0.00024673,2]
[355038916,1740879049607,-500.0,0.00024673,2]
[355038917,1740879049617,-500.0,0.00024673,2]
[355038918,1740879049627,-500.0,0.00024673,2]
[355038919,1740879049636,-500.0,0.00024673,2]
[355038920,1740879049646,-500.0,0.00024673,2]
[355038921,1740879049655,-500.0,0.00024673,2]